Cogmind - Beta 10.2 @@@ ROGUE MODE // 2021.05.03 @ 01:03:46 Player: gammafunk Result: Self-destructed Performance ------------- Evolutions (3) 1500 Regions Visited (12) 2400 Robots Destroyed (229) 1145 Value Destroyed (6992) 6992 Prototype IDs (28) 560 Alien Tech Used (0) 0 Bonus (-430) -430 TOTAL SCORE: 12167 Bonus ------- High Alert Combat Kills 316 Follower Combat Kills 661 Met Data Miner 300 Friendly Fire -1707 Cogmind --------- Core Integrity 509/700 Matter 295/300 Energy 325/325 System Corruption 48% Temperature Cool (0) Movement Treading (165) Location -7/Data Miner Parts ------- > --- POWER (1) -------- Antimatter Reactor > --- PROPULSION (3) --- Armored Treads Heavy Treads > --- UTILITY (5) ------ Weapon Shielding > --- WEAPON (4) ------- Advanced EMP Blaster Advanced EMP Blaster Makeshift Spear > --- INVENTORY (4) ---- (None) Peak State ------------ > --- POWER ------------ Antimatter Reactor > --- PROPULSION ------- Armored Treads Heavy Treads > --- UTILITY ---------- High-capacity Storage Unit High-capacity Storage Unit High-capacity Storage Unit Experimental Sensor Array Light Regenerative Plating > --- WEAPON ----------- Flak Gun Flak Gun Flak Gun Chainsword > --- INVENTORY -------- Antimatter Reactor Antimatter Reactor Heavy Treads Heavy Treads Improved Cooling System High-capacity Matter Pod Transmission Jammer Transmission Jammer Damper Plating Damper Plating System Shield Flak Gun Advanced EMP Blaster Advanced EMP Blaster [Rating: 63] Favorites ----------- Power Improved Ion Engine Engine Improved Ion Engine Reactor Antimatter Reactor Propulsion Light Treads Treads Light Treads Utility High-capacity Storage Unit Device Transmission Jammer Storage High-capacity Storage Unit Processor Improved Signal Interpreter Protection Powered Armor Weapon Autogun Energy Gun Arc Projector Ballistic Gun Autogun Launcher Grenade Launcher Slashing Weapon Chainsword Piercing Weapon Makeshift Spear Build | -11 -10 -10 -9 -9 -8 -8 -7 -7 -7 -7 -7 -7 ------- Run | Scr Mat Min Mat Min Mat Sto Fac Was Fac Low Low Dat Slots Evolved 6 | . . . 2 . 2 . 2 . . . . . Power . | . . . . . . . . . . . . . Propulsion 1 | . . . . . 1 . . . . . . . Utility 3 | . . . 1 . 1 . 1 . . . . . Weapon 2 | . . . 1 . . . 1 . . . . . Parts Attached 254 | 7 13 6 35 3 46 31 80 12 4 12 . 5 Power 10 | 1 1 . 2 . 2 1 1 1 . . . 1 Engine 8 | 1 1 . 2 . 2 1 1 . . . . . Core . | . . . . . . . . . . . . . Reactor 2 | . . . . . . . . 1 . . . 1 Propulsion 42 | 2 3 2 9 2 11 5 5 1 1 1 . . Treads 42 | 2 3 2 9 2 11 5 5 1 1 1 . . Leg . | . . . . . . . . . . . . . Wheel . | . . . . . . . . . . . . . Hover . | . . . . . . . . . . . . . Flight . | . . . . . . . . . . . . . Utility 78 | 2 2 1 11 . 10 4 32 9 1 5 . 1 Device 34 | . 1 . 1 . 1 2 18 7 . 4 . . Storage 12 | 2 1 . 3 . 3 . 2 1 . . . . Processor 2 | . . . . . . . 1 1 . . . . Hackware . | . . . . . . . . . . . . . Protection 30 | . . 1 7 . 6 2 11 . 1 1 . 1 Artifact . | . . . . . . . . . . . . . Weapon 124 | 2 7 3 13 1 23 21 42 1 2 6 . 3 Energy Gun 22 | 1 . . . . 4 1 16 . . . . . Energy Cannon . | . . . . . . . . . . . . . Ballistic Gun 76 | 1 3 3 11 1 16 11 23 . 2 5 . . Ballistic Cannon . | . . . . . . . . . . . . . Launcher 19 | . 4 . 2 . 3 8 . . . . . 2 Special Weapon . | . . . . . . . . . . . . . Impact Weapon . | . . . . . . . . . . . . . Slashing Weapon 6 | . . . . . . 1 3 1 . 1 . . Piercing Weapon 1 | . . . . . . . . . . . . 1 Special Melee Weapon . | . . . . . . . . . . . . . Unidentified Prototypes 7 | . . . 2 . . 4 1 . . . . . Parts Lost 16 | . . 5 4 . . 2 2 . . 3 . . Power . | . . . . . . . . . . . . . Propulsion 2 | . . 2 . . . . . . . . . . Utility 3 | . . 1 1 . . . . . . 1 . . Weapon 11 | . . 2 3 . . 2 2 . . 2 . . Highest Loss Streak 5 | . . 5 1 . . 1 1 . . 2 . . Average Slot Usage (%) 98 | . 99 99 99 99 99 99 99 92 91 91 92 50 Engine 8 | . 14 14 10 11 9 9 7 . . . . . Reactor 1 | . . . . . . . . 6 7 7 7 6 Treads 23 | . 28 27 22 21 26 27 23 15 14 14 15 15 Device 7 | . 9 7 . . 8 9 12 10 . 10 15 7 Storage 18 | . 17 14 20 22 18 18 15 20 23 23 23 10 Processor 2 | . . . . . . . 7 6 7 . . . Protection 6 | . . 6 12 11 9 9 2 . 6 3 . 2 Energy Gun 1 | . . . . . 1 . 5 . . . . . Ballistic Gun 25 | . 16 20 32 32 25 24 24 29 23 25 30 . Launcher 1 | . 10 7 . . . 2 . . . . . 4 Naked Turns . | . . . . . . . . . . . . . Heaviest Build 140 | 16 29 28 73 73 81 82 103 130 137 140 127 114 Greatest Support 90 | 40 40 40 40 40 60 62 62 90 90 90 90 90 Greatest Overweight (x) 1 | . . . 1 1 1 1 1 1 1 1 1 1 Average Overweight (x) . | . . . . 1 1 1 1 1 1 1 1 . Largest Inventory Capacity 28 | 8 12 10 18 18 22 18 20 28 28 28 28 28 Average Capacity 18 | 5 10 10 16 18 18 18 19 25 28 28 28 14 Most Carried 28 | 2 10 10 18 18 18 18 20 26 25 28 28 28 Average Carried 17 | 1 7 9 14 17 17 17 19 21 24 23 28 12 Final Capacity 28 | 8 10 10 18 18 18 18 20 28 28 28 28 4 Final Carried 28 | 2 10 10 18 18 18 18 20 24 25 28 28 . Class Distribution -------------------- 21% | Scavenger-Tank 21% | Tank 16% | Hauler-Skirmisher 16% | Mutant 10% | Hauler-Mutant 6% | Hauler-Tank Dominant Class ---------------- Mutant | -10/Materials Mutant | -10/Mines Tank | -9/Materials Tank | -9/Mines Scavenger-Tank | -8/Materials Scavenger-Tank | -8/Storage Hauler-Skirmisher | -7/Factory Hauler-Gunner | -7/Waste Hauler-Mutant | -7/Factory Hauler-Tank | -7/Lower Caves Hauler-Skirmisher | -7/Lower Caves Mutant | -7/Data Miner Resources | -11 -10 -10 -9 -9 -8 -8 -7 -7 -7 -7 -7 -7 ----------- Run | Scr Mat Min Mat Min Mat Sto Fac Was Fac Low Low Dat Matter Collected 7322 | 272 368 128 1266 336 1241 1008 1354 535 202 429 82 101 Remotely . | . . . . . . . . . . . . . Salvage Created 10399 | 90 452 153 1659 276 1934 1945 1128 1964 357 441 . . Parts 507 | 3 41 15 101 17 110 95 60 30 23 12 . . Haulers Intercepted 16 | . 2 . 5 . 3 6 . . . . . . Recyclers Shooed 12 | . . 1 3 . 1 2 3 . 2 . . . Parts Field Recycled . | . . . . . . . . . . . . . Retrieved Matter . | . . . . . . . . . . . . . Parts Self-Destructed 9 | . . . . . . . . . . 9 . . Prevented 1 | . . . . . . . . . . . 1 . Kills | -11 -10 -10 -9 -9 -8 -8 -7 -7 -7 -7 -7 -7 ------- Run | Scr Mat Min Mat Min Mat Sto Fac Was Fac Low Low Dat Combat Hostiles Destroyed 169 | . 15 9 33 8 39 31 20 6 2 6 . . Guns 119 | . . 2 32 8 24 21 18 6 2 6 . . AOE 48 | . 15 7 1 . 15 10 . . . . . . Classes Destroyed 19 | 1 6 3 3 . 3 . 1 1 1 . . . Worker 13 | . . 1 1 . 2 4 3 . 2 . . . Builder 7 | . 1 . . . 1 2 . . 3 . . . Tunneler 2 | . 1 . . . . 1 . . . . . . Hauler 16 | . 2 . 5 . 3 6 . . . . . . Recycler 8 | 1 1 1 1 . 2 . 2 . . . . . Operator 1 | . . . 1 . . . . . . . . . Watcher 7 | . 1 . 4 . 1 . . . 1 . . . Swarmer 32 | . 5 6 8 2 4 1 6 . . . . . Grunt 65 | . 10 . 14 5 18 9 3 . 1 5 . . Brawler 5 | . . . . . 2 3 . . . . . . Duelist 7 | . . . 2 1 1 3 . . . . . . Protector 2 | . . . . . 1 1 . . . . . . Sentry 33 | . . . 9 . 11 10 3 . . . . . Demolisher 6 | . . 2 . . . 4 . . . . . . Hunter 5 | . . . . . 2 . 2 . 1 . . . Programmer 7 | . . . . . . . 6 . . 1 . . Compactor 6 | . . . . . . . . 6 . . . . Decomposer 1 | . . . . . . . . . . 1 . . Assembled 1 | . . 1 . . . . . . . . . . Surgeon 2 | . . . . . . . . . 1 1 . . Thug 3 | . . . . . . . . . 3 . . . Savage 1 | . . . . . . . . . 1 . . . Martyr 1 | . . . . . . . . 1 . . . . Best Kill Streak 12 | 1 6 5 5 3 10 12 3 3 5 2 . . Combat Bots Only 10 | . 3 3 4 3 9 10 3 3 2 2 . . Max Kills in Single Turn 8 | 1 2 3 2 2 3 6 1 1 8 1 . . Gunslinging 1 | . . . 1 1 . . . . . . . . Exploded 5 | . 2 2 1 . 3 5 . . . . . . Melee . | . . . . . . . . . . . . . Uniques/NPCs Destroyed . | . . . . . . . . . . . . . Combat | -11 -10 -10 -9 -9 -8 -8 -7 -7 -7 -7 -7 -7 -------- Run | Scr Mat Min Mat Min Mat Sto Fac Was Fac Low Low Dat Damage Taken 8072 | . 230 797 1243 343 1208 1470 1849 . 298 634 . . Core 757 | . 7 154 140 51 71 143 157 . . 34 . . Absorbed by Shields . | . . . . . . . . . . . . . Core Remaining (%) 62 | 100 . 35 . 52 . 61 . . . . . . Volleys Fired 421 | 2 28 13 97 15 90 69 63 19 4 21 . . Largest 4 | 2 2 2 3 3 3 3 4 4 4 4 . . Hottest 188 | 70 40 40 69 69 100 76 188 112 107 107 . . Shots Fired 1210 | 4 35 20 282 45 235 197 240 75 16 60 . 1 Gun 1160 | 4 14 14 278 45 225 189 240 75 16 60 . . Cannon . | . . . . . . . . . . . . . Launcher 50 | . 21 6 4 . 10 8 . . . . . 1 Special . | . . . . . . . . . . . . . Kinetic 1070 | 2 14 14 278 45 195 189 182 75 16 60 . . Thermal 2 | 2 . . . . . . . . . . . . Explosive 43 | . 21 6 4 . 10 2 . . . . . . Electromagnetic 95 | . . . . . 30 6 58 . . . . 1 Robot Hit Streak 38 | 3 7 6 24 17 38 20 26 13 14 14 . . Robot Miss Streak 9 | . 1 2 4 2 5 2 6 6 6 9 . . Penetration Max 1 | . . . . . . 1 . . . . . . Secondary Targets 13 | . . 1 6 3 . 2 1 . . . . . Max Gunslinging Chain 1 | . . 1 1 1 . 1 1 . . . . . Shots Hit Robots 905 | 3 21 11 204 34 164 157 174 71 12 54 . . Core Hits 512 | 3 38 19 74 13 82 79 57 77 27 43 . . Critical Hits 11 | . . . 2 . 4 4 1 . . . . . Critical Kills 2 | . . . . . . 2 . . . . . . Critical Parts Destroyed 9 | . . . 2 . 4 2 1 . . . . . Melee Attacks 14 | . . . . . . 2 6 3 1 2 . . Impact . | . . . . . . . . . . . . . Slashing 14 | . . . . . . 2 6 3 1 2 . . Piercing . | . . . . . . . . . . . . . Sneak Attacks 8 | . . . . . . . 5 2 1 . . . Combat Hostiles . | . . . . . . . . . . . . . Follow-up Attacks . | . . . . . . . . . . . . . Damage Inflicted 21445 | 33 1107 591 3072 509 4310 4106 2896 2178 1478 1165 . . Guns 13961 | 32 127 139 2534 508 2590 2725 2173 1968 219 946 . . Cannons . | . . . . . . . . . . . . . Explosions 5905 | . 976 452 391 . 1632 1244 78 . 1132 . . . Melee 1081 | . . . . . . . 538 210 114 219 . . Ramming 498 | 1 4 . 147 1 88 137 107 . 13 . . . Kinetic 13090 | 8 127 139 2534 508 2285 2725 1631 1968 219 946 . . Thermal 643 | 24 29 . . . 30 482 78 . . . . . Explosive 4430 | . 853 452 391 . 1602 . . . 1132 . . . Electromagnetic 1703 | . 94 . . . 305 762 542 . . . . . Impact . | . . . . . . . . . . . . . Slashing 1081 | . . . . . . . 538 210 114 219 . . Piercing . | . . . . . . . . . . . . . Highest Corruption 48 | . . . 5 5 . . 4 44 47 48 48 48 Average Corruption 21 | . . . 4 5 . . 3 26 44 47 48 48 Corruption Purged . | . . . . . . . . . . . . . Effects 408 | . . . 43 28 . . 21 52 88 122 35 19 Message Errors 67 | . . . 10 2 . . 6 5 19 14 8 3 Matter Fused 69 | . . . 12 9 . . 9 7 14 13 5 . Heat Flow Errors 34 | . . . 3 4 . . 1 3 9 8 2 4 Energy Discharges 29 | . . . 5 2 . . 2 2 7 4 5 2 Parts Rejected 2 | . . . 1 . . . . . . 1 . . Data Loss (minor) 27 | . . . 5 4 . . 1 3 3 5 4 2 Data Loss (major) 8 | . . . . 2 . . . . 3 3 . . Misfires 8 | . . . . . . . . 1 2 4 . 1 Alerts 2 | . . . . . . . . . . 1 1 . Misdirections 76 | . . . . . . . . 7 22 31 10 6 Targeting Errors 70 | . . . 6 5 . . 2 22 7 27 . 1 Weapon Failures 16 | . . . 1 . . . . 2 2 11 . . Overload Shots . | . . . . . . . . . . . . . Overflow Damage 358 | . 15 . 40 . 12 24 82 20 62 103 . . Projectiles . | . . . . . . . . . . . . . Explosions 150 | . 15 . 37 . 12 24 . . 62 . . . Melee 208 | . . . 3 . . . 82 20 . 103 . . Knockbacks 3 | . . . 2 . . 1 . . . . . . Impact 3 | . . . 2 . . 1 . . . . . . Kinetic . | . . . . . . . . . . . . . Secondary . | . . . . . . . . . . . . . Self-Inflicted Damage 345 | . 104 . . . . . 19 . 222 . . . Shots 7 | . 4 . . . . . 1 . 2 . . . Rammed 63 | 1 2 . 20 1 13 13 13 . . . . . Targets Rammed 70 | 1 3 . 21 1 16 13 14 . 1 . . . Kicked . | . . . . . . . . . . . . . Crushed 7 | . 1 . 1 . 3 . 1 . 1 . . . Highest Temperature 449 | 40 2 4 248 262 255 131 351 361 225 449 248 246 Average Temperature 61 | 20 1 1 45 71 43 36 74 95 96 101 111 94 Received Heat Transfer 1878 | . 36 . 477 117 441 342 186 . . 279 . . Effects 7 | . . . . . 3 . 2 . . 2 . . Shutdowns 1 | . . . . . . . 1 . . . . . Energy Bleed 1 | . . . . . . . . . . 1 . . Interference 4 | . . . . . 3 . 1 . . . . . Short Circuit 1 | . . . . . . . . . . 1 . . Siege Activations . | . . . . . . . . . . . . . Robots Corrupted 2 | . . . . . . . 2 . . . . . Combat Hostiles 2 | . . . . . . . 2 . . . . . Parts Fried 16 | . . . . . 4 5 6 . 1 . . . Impact Corruptions 2 | . . . 2 . . . . . . . . . Robots Melted . | . . . . . . . . . . . . . Combat Hostiles . | . . . . . . . . . . . . . Parts Melted 2 | . . . . . . 1 1 . . . . . Heat Transferred 924 | 74 50 . . . 50 650 100 . . . . . Parts Sabotaged . | . . . . . . . . . . . . . Parts Stolen . | . . . . . . . . . . . . . Parts Stripped . | . . . . . . . . . . . . . Power Chain Reactions 7 | . 1 . . . 1 4 1 . . . . . Missiles Intercepted . | . . . . . . . . . . . . . Alert | -11 -10 -10 -9 -9 -8 -8 -7 -7 -7 -7 -7 -7 ------- Run | Scr Mat Min Mat Min Mat Sto Fac Was Fac Low Low Dat Peak Influence 757 | 5 343 268 378 223 757 380 723 249 342 . . . Initial 286 | . 3 58 . 103 . 286 9 249 35 . . . Average 210 | 1 135 86 152 89 342 185 283 205 129 . . . Maximum Alert Level 3 | . 1 1 1 1 3 1 3 1 1 . . . Low Security (%) 60 | 100 85 81 58 98 34 54 60 21 72 . . . Level 1 23 | . 14 18 41 1 22 45 . 78 27 . . . Level 2 12 | . . . . . 35 . 27 . . . . . Level 3 4 | . . . . . 7 . 11 . . . . . Level 4 . | . . . . . . . . . . . . . Level 5 . | . . . . . . . . . . . . . High Security . | . . . . . . . . . . . . . Max Security . | . . . . . . . . . . . . . Squads Dispatched 26 | . 4 . 3 . 5 2 11 . 1 . . . Investigation 6 | . 3 . 1 . 1 . 1 . . . . . Extermination 10 | . . . . . . . 9 . 1 . . . Reinforcement 5 | . 1 . 2 . 1 . 1 . . . . . Assault 4 | . . . . . 2 2 . . . . . . Garrison 1 | . . . . . 1 . . . . . . . Intercept . | . . . . . . . . . . . . . Construction Impeded . | . . . . . . . . . . . . . Haulers Reinforced . | . . . . . . . . . . . . . Stealth | -11 -10 -10 -9 -9 -8 -8 -7 -7 -7 -7 -7 -7 --------- Run | Scr Mat Min Mat Min Mat Sto Fac Was Fac Low Low Dat Distress Signals 10 | . 1 . 4 . 3 1 1 . . . . . Communications Jammed 27 | . . . . . 15 11 1 . . . . . Distress Signals 26 | . . . . . 15 11 . . . . . . Times Spotted 290 | . 34 12 42 9 74 48 47 6 9 9 . . Peak Tracking Total 11 | . 4 6 5 3 9 11 5 2 3 3 . . Tactical Retreats 16 | . 1 . 1 1 9 1 3 . . . . . Traps | -11 -10 -10 -9 -9 -8 -8 -7 -7 -7 -7 -7 -7 ------- Run | Scr Mat Min Mat Min Mat Sto Fac Was Fac Low Low Dat Traps Triggered 20 | . 1 . 2 . 2 2 11 . 2 . . . Indirectly . | . . . . . . . . . . . . . Trap Hack Attempts . | . . . . . . . . . . . . . Triggered . | . . . . . . . . . . . . . Disarmed . | . . . . . . . . . . . . . Reprogrammed . | . . . . . . . . . . . . . Reused . | . . . . . . . . . . . . . Traps Extracted . | . . . . . . . . . . . . . Installed . | . . . . . . . . . . . . . Triggered 2 | . . . . . . . . . . . 2 . Machines | -11 -10 -10 -9 -9 -8 -8 -7 -7 -7 -7 -7 -7 ---------- Run | Scr Mat Min Mat Min Mat Sto Fac Was Fac Low Low Dat Machines Disabled 23 | . 6 4 1 . 6 2 . . 3 . . 1 Max in Single Turn 2 | . 1 2 1 . 1 1 . . 2 . . 1 Garrison Access 1 | . . . . . 1 . . . . . . . Machines Sabotaged . | . . . . . . . . . . . . . Garrisons Compromised . | . . . . . . . . . . . . . Overloaded Fab Kills . | . . . . . . . . . . . . . Fab Network Shutdowns 1 | . . . . . . . 1 . . . . . Hacking | -11 -10 -10 -9 -9 -8 -8 -7 -7 -7 -7 -7 -7 --------- Run | Scr Mat Min Mat Min Mat Sto Fac Was Fac Low Low Dat Machines Accessed 65 | . 8 . 13 1 12 10 9 . 4 3 1 4 Terminals 43 | . 7 . 9 1 9 9 5 . 3 . . . Fabricators 2 | . . . . . . . 2 . . . . . Repair Stations 6 | . 1 . 2 . 1 1 . . 1 . . . Recycling Units 1 | . . . . . . . 1 . . . . . Scanalyzers 3 | . . . 2 . 1 . . . . . . . Garrison Access 2 | . . . . . 1 . 1 . . . . . Total Hacks 197 | . 31 . 36 3 35 33 17 . 7 4 1 30 Successful 124 | . 19 . 15 1 23 20 8 . 3 4 1 30 Failed 72 | . 11 . 21 2 12 13 9 . 4 . . . Catastrophic 15 | . 2 . 2 1 2 2 4 . 2 . . . Database Lockouts 1 | . 1 . . . . . . . . . . . Manual 86 | . 20 . 18 3 15 15 11 . 4 . . . Terminals 127 | . 27 . 27 3 27 27 11 . 5 . . . Fabricators 3 | . . . . . . . 3 . . . . . Repair Stations 18 | . 4 . 4 . 2 6 . . 2 . . . Recycling Units 1 | . . . . . . . 1 . . . . . Scanalyzers 10 | . . . 5 . 5 . . . . . . . Garrison Access 3 | . . . . . 1 . 2 . . . . . Terminal Hacks 80 | . 10 . 5 1 12 13 3 . 1 4 1 30 Record 13 | . . . . . . . . . . 2 . 11 Part Schematic 15 | . 1 . 1 . 1 2 1 . . . . 9 Robot Schematic 8 | . . . . . 1 . . . . . . 7 Robot Analysis 5 | . 3 . . . 1 1 . . . . . . Prototype ID Bank 8 | . 3 . . . 2 . . . . . . 3 Open Door 6 | . . . . . . 3 . . . 2 1 . Branch Access Points 3 | . . . 1 . 1 . . . 1 . . . Fabricator Index 1 | . . . . . . . 1 . . . . . Alert Level 8 | . 1 . 1 . 3 3 . . . . . . Unreport Threat 10 | . 1 . 2 1 2 3 1 . . . . . Locate Traps 2 | . . . . . 1 1 . . . . . . Hauler Manifests 1 | . 1 . . . . . . . . . . . Fabricator Hacks 3 | . . . . . . . 3 . . . . . Load Schematic 1 | . . . . . . . 1 . . . . . Build 2 | . . . . . . . 2 . . . . . Repair Station Hacks 16 | . 4 . 4 . 2 4 . . 2 . . . Scan Component 8 | . 2 . 2 . 1 2 . . 1 . . . Repair 8 | . 2 . 2 . 1 2 . . 1 . . . Recycling Unit Hacks 1 | . . . . . . . 1 . . . . . Retrieve Matter 1 | . . . . . . . 1 . . . . . Scanalyzer 8 | . . . 3 . 5 . . . . . . . Insert Component 4 | . . . 2 . 2 . . . . . . . Analyze 4 | . . . 1 . 3 . . . . . . . Garrison Access Hacks 1 | . . . . . 1 . . . . . . . Seal Access 1 | . . . . . 1 . . . . . . . Unauthorized Hacks 15 | . 5 . 3 . 3 3 1 . . . . . Terminals 15 | . 5 . 3 . 3 3 1 . . . . . Assimilate 2 | . 1 . 1 . . . . . . . . . Botnet 13 | . 4 . 2 . 3 3 1 . . . . . Fabricators . | . . . . . . . . . . . . . Repair Stations . | . . . . . . . . . . . . . Recycling Units . | . . . . . . . . . . . . . Scanalyzers . | . . . . . . . . . . . . . Garrison Access . | . . . . . . . . . . . . . Data Cores Recovered . | . . . . . . . . . . . . . Used . | . . . . . . . . . . . . . Hacking Detections 49 | . 7 . 12 1 11 7 8 . 3 . . . Full Trace Events 1 | . . . . . . . 1 . . . . . Feedback Events . | . . . . . . . . . . . . . Feedback Blocked . | . . . . . . . . . . . . . Robot Schematics Acquired 8 | . . . . . 1 . . . . . . 7 Robots Built . | . . . . . . . . . . . . . Matter . | . . . . . . . . . . . . . Time . | . . . . . . . . . . . . . Total Robot Build Rating . | . . . . . . . . . . . . . Part Schematics Acquired 18 | . 1 . 2 . 3 2 1 . . . . 9 Parts Built 3 | . . . . . . . 3 . . . . . Matter 336 | . . . . . . . 336 . . . . . Time 115 | . . . . . . . 115 . . . . . Total Part Build Rating 14 | . . . . . . . 14 . . . . . Parts Repaired 8 | . 2 . 2 . 1 2 . . 1 . . . Time 331 | . 52 . 126 . 26 89 . . 38 . . . Parts Recycled . | . . . . . . . . . . . . . Recycled Matter . | . . . . . . . . . . . . . Retrieved Matter 222 | . . . . . . . 222 . . . . . Retrieved Components . | . . . . . . . . . . . . . Parts Scanalyzed 3 | . . . 1 . 2 . . . . . . . Part Schematics Acquired 3 | . . . 1 . 2 . . . . . . . Parts Damaged 2 | . . . 1 . 1 . . . . . . . Bothacking | -11 -10 -10 -9 -9 -8 -8 -7 -7 -7 -7 -7 -7 ------------ Run | Scr Mat Min Mat Min Mat Sto Fac Was Fac Low Low Dat Used RIF Installer . | . . . . . . . . . . . . . Robots Hacked . | . . . . . . . . . . . . . Non-combat . | . . . . . . . . . . . . . Combat . | . . . . . . . . . . . . . Robot Hacks Applied . | . . . . . . . . . . . . . Relay Couplers Released . | . . . . . . . . . . . . . Robots Rewired . | . . . . . . . . . . . . . Allies Hacked 1 | . . . . . . . 1 . . . . . Hacks Repelled . | . . . . . . . . . . . . . Allies | -11 -10 -10 -9 -9 -8 -8 -7 -7 -7 -7 -7 -7 -------- Run | Scr Mat Min Mat Min Mat Sto Fac Was Fac Low Low Dat Total Allies 36 | . . . . . . 12 3 19 . 2 . . Largest Group 19 | . . . . . . 12 3 19 17 2 2 . Highest-Rated Group 477 | . . . . . . 235 93 477 411 50 50 . Highest-Rated Ally 36 | . . . . . . 31 31 36 36 32 25 . Total Orders . | . . . . . . . . . . . . . Ally Attacks 220 | . . . . . . 22 73 . 125 . . . Total Damage 2810 | . . . . . . 249 941 . 1620 . . . Kills 26 | . . . . . . 3 9 . 14 . . . Allies Corrupted . | . . . . . . . . . . . . . Allies Melted . | . . . . . . . . . . . . . Intel | -11 -10 -10 -9 -9 -8 -8 -7 -7 -7 -7 -7 -7 ------- Run | Scr Mat Min Mat Min Mat Sto Fac Was Fac Low Low Dat Robot Analysis Total 5 | . 3 . . . 1 1 . . . . . . Derelict Logs Recovered 5 | . . . . 2 . . . . . 3 . . Drone Launches . | . . . . . . . . . . . . . Drone Recoveries . | . . . . . . . . . . . . . Exploration | -11 -10 -10 -9 -9 -8 -8 -7 -7 -7 -7 -7 -7 ------------- Run | Scr Mat Min Mat Min Mat Sto Fac Was Fac Low Low Dat Turns Passed 21151 | 119 1539 1125 3174 875 2991 3242 4761 511 974 1082 543 215 Spaces Moved 10361 | 65 846 646 1473 456 1395 1564 2294 209 497 518 290 108 Core 3 | 3 . . . . . . . . . . . . Treads 10358 | 62 846 646 1473 456 1395 1564 2294 209 497 518 290 108 Legs . | . . . . . . . . . . . . . Wheels . | . . . . . . . . . . . . . Hover . | . . . . . . . . . . . . . Flight . | . . . . . . . . . . . . . Fastest Speed 50 | 50 160 160 160 180 180 175 175 185 180 180 185 165 Average Speed 178 | 154 160 160 176 180 180 180 184 185 184 184 185 173 Slowest Speed 190 | 160 160 160 180 180 183 183 190 190 185 185 185 185 Overloaded Moves . | . . . . . . . . . . . . . Propulsion Burnouts . | . . . . . . . . . . . . . Robots Hopped . | . . . . . . . . . . . . . Cave-ins Triggered . | . . . . . . . . . . . . . Exploration Rate (%) 68 | 4 93 99 96 97 95 94 50 74 13 56 44 69 Regions Visited 12 Branch Regions 6 Pre-discovered Areas 3 | . . . . 2 . . . . . . . 1 Known Exits Taken 5 | . . . 1 1 1 . . . 1 1 . . Unknown Exits Taken 5 | 1 1 1 . . . 1 . . . . 1 . Scrap Searched 6 | . . 1 . 3 . . . . . 2 . . Spaces Dug 17 | . 6 . . . . 10 . 1 . . . . Terrain Destroyed 277 | . 79 26 16 . 75 27 12 1 41 . . . Melee 1 | . . . . . . . . 1 . . . . Projectile 10 | . . . . . 8 . 2 . . . . . AOE 266 | . 79 26 16 . 67 27 10 . 41 . . . Terrain Rammed . | . . . . . . . . . . . . . Walls Destroyed . | . . . . . . . . . . . . . Machines Disabled . | . . . . . . . . . . . . . Actions | -11 -10 -10 -9 -9 -8 -8 -7 -7 -7 -7 -7 -7 --------- Run | Scr Mat Min Mat Min Mat Sto Fac Was Fac Low Low Dat Total 12150 | 76 996 718 1837 478 1706 1833 2658 283 538 591 297 139 Wait 768 | . 88 49 165 2 95 129 146 17 32 25 8 12 Move 10350 | 64 845 645 1472 455 1394 1563 2294 208 496 517 289 108 Hop . | . . . . . . . . . . . . . Pick Up 101 | 2 10 5 18 1 23 7 17 9 . 9 . . Fast Attach 46 | 7 1 . 8 1 8 6 6 2 1 1 . 5 Attach 28 | . . 5 6 . 2 2 6 1 . 6 . . Detach 12 | . 1 . 2 . . . 1 2 . 3 . 3 Swap 180 | . 12 1 21 2 36 23 68 9 3 5 . . Drop 150 | . 8 . 27 1 42 19 27 13 . 2 . 11 Fire 421 | 2 28 13 97 15 90 69 63 19 4 21 . . Melee 14 | . . . . . . 2 6 3 1 2 . . Ram . | . . . . . . . . . . . . . Kick . | . . . . . . . . . . . . . Crush 70 | 1 3 . 21 1 16 13 14 . 1 . . . Escape Stasis 10 | . . . . . . . 10 . . . . . Rewire . | . . . . . . . . . . . . . Trap . | . . . . . . . . . . . . . Miscellaneous . | . . . . . . . . . . . . . Route ------- -11/Scrapyard -10/Materials (discovered 4 exits: *Mat x3 / [*Min]) -10/Mines (discovered 3 exits: *Mat x2 / [*Exi]) -9/Materials (discovered 4 exits: *Mat x3 / *Min) -9/Mines (discovered 2 exits: *Mat x2) -8/Materials (discovered 5 exits: *Fac x3 / *Sto x2) -8/Storage -7/Factory (discovered 2 exits: *Fac / *Low) -7/Waste -7/Factory (discovered 2 exits: *Low x2) -7/Lower Caves -7/Lower Caves -7/Data Miner (discovered 1 exit: [*Pro]) History --------- Turn | Location | Event 36 | -11/Scrapyard | Discovered new exit (range 16) 120 | -11/Scrapyard | Entered Materials 301 | -10/Materials | Build established: Mutant 440 | -10/Materials | Discovered new exit (range 12) 688 | -10/Materials | Discovered new exit (range 15) 984 | -10/Materials | Discovered new exit (range 9) 1095 | -10/Materials | Discovered new exit (range 13) 1110 | -10/Materials | Central database locked down 1497 | -10/Materials | Repaired Lgt. Treads 1525 | -10/Materials | Repaired Lgt. Assault Rifle 1659 | -10/Materials | Entered Mines 1685 | -10/Mines | Met a Derelict bent on vengeance 1783 | -10/Mines | Deemed a non-threat by the Exiles lab entrance 1783 | -10/Mines | Discovered new exit (range 5) 1873 | -10/Mines | Discovered new exit (range 10) 2049 | -10/Mines | Discovered new exit (range 14) 2112 | -10/Mines | Assembled infested the area 2197 | -10/Mines | Met 8R-AWN 2260 | -10/Mines | Core integrity fell below 50% 2288 | -10/Mines | Lost 5 parts (2n1u2w) 2343 | -10/Mines | Found a damaged Exp. Sensor Array with a note attached 2346 | -10/Mines | Found Prototype Device 2784 | -10/Mines | Entered Materials 2784 | -9/Materials | Evolved 2 slots: Utility x1, Weapon x1 3100 | -9/Materials | Build established: Tank 3395 | -9/Materials | Identified Exp. Sensor Array 3492 | -9/Materials | Discovered new exit (range 6) 3753 | -9/Materials | Repaired Lgt. Armor Plating 4102 | -9/Materials | Discovered new exit (range 5) 4350 | -9/Materials | Build established: Scavenger-Tank 4411 | -9/Materials | Repaired Broken Exp. Sensor Array 4881 | -9/Materials | Discovered new exit (range 9) 5216 | -9/Materials | Build established: Tank 5650 | -9/Materials | Discovered new exit (range 6) 5908 | -9/Materials | Identified exit to Mines 5958 | -9/Materials | Entered Mines 5959 | -9/Mines | Learned location of Storage (-8) 6250 | -9/Mines | Discovered new exit (range 3) 6409 | -9/Mines | Identified exit to Materials 6637 | -9/Mines | Learned location of Zion (-6) 6833 | -9/Mines | Entered Materials 6833 | -8/Materials | Evolved 2 slots: Propulsion x1, Utility x1 6866 | -8/Materials | Garrison activated, responded to threat 7309 | -8/Materials | Discovered new exit (range 9) 7329 | -8/Materials | Identified exit to Storage 7815 | -8/Materials | Discovered new exit (range 16) 7932 | -8/Materials | Found Powered Armor 7937 | -8/Materials | Found Powered Armor 8356 | -8/Materials | Discovered new exit (range 6) 8417 | -8/Materials | Build established: Scavenger-Tank 8743 | -8/Materials | Repaired Broken Adv. Treads 9233 | -8/Materials | First assault squad dispatched 9333 | -8/Materials | Destroyed 9 combat bots 9793 | -8/Materials | Found Powered Armor 9824 | -8/Materials | Entered Storage 10226 | -8/Storage | Repaired Imp. Assault Rifle 10268 | -8/Storage | Repaired Transmission Jammer 10767 | -8/Storage | Found Prototype Protection 10767 | -8/Storage | Identified Lgt. Regenerative Plating 11782 | -8/Storage | Discovered new exit (range 16) 12291 | -8/Storage | Build established: Mutant 12298 | -8/Storage | Assisted by bots powering up and referring to "LRC-V3" 12473 | -8/Storage | Met a pair of Derelict thieves 12612 | -8/Storage | Destroyed 10 combat bots 12904 | -8/Storage | Build established: Tank 13066 | -8/Storage | Entered Factory 13066 | -7/Factory | Evolved 2 slots: Utility x1, Weapon x1 13687 | -7/Factory | Fabricated Hyp. Gauss Cannon? 13708 | -7/Factory | Build established: Hauler-Skirmisher 13974 | -7/Factory | Allied Derelicts emerged from ambush trap array 14688 | -7/Factory | Build established: Hauler-Mutant 14766 | -7/Factory | Discovered new exit (range 11) 14790 | -7/Factory | Identified exit to Factory 15464 | -7/Factory | Build established: Hauler-Skirmisher 15489 | -7/Factory | Found Powered Armor 15906 | -7/Factory | Fabricated Armor Integrity Analyzer (x1) 15963 | -7/Factory | Local fabrication network quarantined 16479 | -7/Factory | Discovered new exit (range 6) 16510 | -7/Factory | Identified exit to Lower Caves 17827 | -7/Factory | Sucked down chute 17827 | -7/Factory | Entered Waste 17842 | -7/Waste | EMP discharged 17842 | -7/Waste | System corruption reached 10% 17862 | -7/Waste | Destroyed C-40 Crusher 17882 | -7/Waste | Spotted C-40 Crusher 17884 | -7/Waste | Found Damper Plating 17942 | -7/Waste | EMP discharged 17976 | -7/Waste | Destroyed C-40 Crusher 18042 | -7/Waste | EMP discharged 18110 | -7/Waste | Spotted C-40 Crusher 18119 | -7/Waste | Destroyed C-40 Crusher 18135 | -7/Waste | Destroyed C-40 Crusher 18142 | -7/Waste | EMP discharged 18142 | -7/Waste | System corruption reached 30% 18143 | -7/Waste | Destroyed C-40 Crusher 18163 | -7/Waste | Found Damper Plating 18171 | -7/Waste | Build established: Hauler-Gunner 18174 | -7/Waste | Found Damper Plating 18213 | -7/Waste | Destroyed C-40 Crusher 18226 | -7/Waste | Discovered new exit (range 16) 18228 | -7/Waste | Found Damper Plating 18242 | -7/Waste | EMP discharged 18265 | -7/Waste | Met Warlord forces unprepared to attack 18338 | -7/Waste | Entered Factory 18338 | -7/Factory | Accompanied by 17 allies 18565 | -7/Factory | Build established: Hauler-Mutant 19215 | -7/Factory | Repaired Arm. Treads 19312 | -7/Factory | Entered Lower Caves 19312 | -7/Lower Caves | Accompanied by 1 ally 19632 | -7/Lower Caves | Build established: Hauler-Tank 19979 | -7/Lower Caves | Learned Factory garrison access intel 20291 | -7/Lower Caves | A Commander dispatched an escort 20311 | -7/Lower Caves | Identified exit to Lower Caves 20315 | -7/Lower Caves | Learned location of 1 exit from Research 20315 | -7/Lower Caves | Learned Extension emergency access door positions 20394 | -7/Lower Caves | Entered another Lower Caves area 20394 | -7/Lower Caves | Accompanied by 2 allies 20395 | -7/Lower Caves | Commander's escort returned to base 20395 | -7/Lower Caves | Commander's escort returned to base 20411 | -7/Lower Caves | Build established: Hauler-Skirmisher 20920 | -7/Lower Caves | Discovered new exit (range 10) 20937 | -7/Lower Caves | Entered Data Miner 20939 | -7/Data Miner | Discovered new exit (range 6) 20975 | -7/Data Miner | Met Data Miner 21010 | -7/Data Miner | Learned location of Section 7 (-3) 21010 | -7/Data Miner | Acquired the access code to Warlord's prototype stash 21142 | -7/Data Miner | Data Conduit disabled 21152 | -7/Data Miner | Self-destructed Last Messages --------------- Dropped Transmission Jammer. System corrupted: Heat flow error (+267). Acquired Weapon Shielding. System corrupted: Energy discharge (-71). Acquired Mak. Spear. Acquired Adv. EMP Blaster. VO9ZXC5BLXCE81XMT PN=B3JHCGN Acquired Adv. EMP Blaster. Dropped Antimatter Reactor. Extracted 40 matter. System corrupted: Heat flow error (+226). Acquired Antimatter Reactor. System corrupted: Heat flow error (+136). Extracted 10 matter. System corrupted: FCS attempts to trigger Adv. EMP Blaster. System corrupted: Adv. EMP Blaster targeting data glitched. System corrupted: Adv. EMP Blaster misfires. Data Conduit disabled. Map ----- +----------------------------------------------------+ | | | | | | | ??????????????????????????????????????????? | | ??????????????????????????????????????????? | | ??????????????????????????????????????????? | | ??????????????????????????????????????????? | | ?????????????????????????????????????####?? | | ??????????###########??????????????### #?? | | ?????????"""""""""""######????????## #?? | | ????????""""" """"""""########## < ##?? | | ????????""""" ### | | ???????""" | | ???????""" | | ??????""" g | | ???????""" | | ???????""" """"""""""""""""### | | ???????"""" """"###############?? | | ???????"""" """""###???????????????? | | ???????"""""" #####?????????????????? | | ????????####"## #?????????????????????? | | ???????????#??## #?????????????????????? | | ??????????????## #?????????????????????? | | ??????????????# #?????????????????????? | | ?????????????## #?????????????????????? | | ?????????????# @ #?????????????????????? | | ?????????????### #?????????????????????? | | ???????????????# ##????????????????????? | | ??????????????##!!!""#????????????????????? | | ???????????#?## *=!""#????????????????????? | | ??????????##"#"X=!!""#????????????????????? | | ??????????""""" [![ "####?????????????????? | | ??????????""""" !! X"""""?????????????????? | | ??????????##"#"X*!!!"##"#?????????????????? | | ???????????#?## / X""""#?????????????????? | | ??????????????##[!!["##"#?????????????????? | | ???????????????#######????????????????????? | | ??????????????????????????????????????????? | | ??????????????????????????????????????????? | | ??????????????????????????????????????????? | | ??????????????????????????????????????????? | | ??????????????????????????????????????????? | | ??????????????????????????????????????????? | | ??????????????????????????????????????????? | | ??????????????????????????????????????????? | | ??????????????????????????????????????????? | | ??????????????????????????????????????????? | | ??????????????????????????????????????????? | | ??????????????????????????????????????????? | | ??????????????????????????????????????????? | +----------------------------------------------------+ Best States ------------- Heat Dissipation 61 Energy Generation 21 Energy Capacity 325 Matter Stores 300 Matter Capacity 300 Sight Range 16 Robot Scan Range 30 Terrain Scan Density 10 Jamming Range 8 EM Shielding 4 Armor Coverage 550 Core Shielding 20 Weapon Shielding 33 Reclamation Efficiency 10 Evasion (%) 40 Armor Integrity Analysis 33 Recoil Reduction 3 Item Schematics ----------------- Hcp. Storage Unit | -10/Materials | Hacked Exp. Sensor Array | -9/Materials | Scanalyzed Armor Integrity Analyzer | -9/Materials | Hacked Adv. Signal Interpreter | -8/Materials | Hacked Adv. Treads | -8/Materials | Scanalyzed Arm. Treads | -8/Materials | Scanalyzed Hyp. Gauss Rifle | -8/Storage | Hacked Med. Treads | -8/Storage | Hacked Adv. Terrain Scan Processor | -7/Factory | Hacked Combat Drone Bay | -7/Data Miner | Free Lgt. Regenerative Plating | -7/Data Miner | Free Cmb. Gravmag System | -7/Data Miner | Free Exp. Cesium-ion Thruster | -7/Data Miner | Free Triangulator | -7/Data Miner | Free Exp. Terrain Scanner | -7/Data Miner | Free Exp. Transmission Jammer | -7/Data Miner | Free Exp. ECM Suite | -7/Data Miner | Free Plasma Sword | -7/Data Miner | Free Robot Schematics ------------------ O-24 Administrator | -8/Materials | Hacked S-27 Virus | -7/Data Miner | Free G-50 Soldier | -7/Data Miner | Free G-67 Veteran | -7/Data Miner | Free H-66 Slayer | -7/Data Miner | Free P-70 Sage | -7/Data Miner | Free I-36 Angel | -7/Data Miner | Free I-47 Archangel | -7/Data Miner | Free Fabricated ------------ Hyp. Gauss Cannon | x2 | -7/Factory | Preloaded Armor Integrity Analyzer | x1 | -7/Factory Alien Tech Used ----------------- None Achievements -------------- None Challenges ------------ None Game ------ Seed SuperchargedSpectralShotgun Manual? 0 Play Time 02:34:11 Cumulative 250.6 hours Start 2021.05.02 @ 21:59:24 End 2021.05.03 @ 01:03:46 Sessions 3 Manual Loads 0 Difficulty Rogue Special Mode None Game No. 84 Rogue 84 Adventurer 0 Explorer 0 Win Type - Total 5 Types 1/2/1/0/0/1/0/0/0 Lore% 60 Gallery% 61 Achievement% 57 Wizard Run 0 Options --------- ASCII 0 Keyboard 1 Movement Vi Keybinds 0 Fullscreen 2 Font 12/Smallcaps Map View 60x54 Tactical HUD 0 Map Filters NONE Filters NONE Steam 1 RUN: e9d082da-2c85-440b-9623-45b968c0023b